bitfinex/quotes_BTCUSD_20250211
["timestamp","ask_amount","ask_price","bid_price","bid_amount"]
[1739289345360,0.154314,97204.0,97203.0,0.00035694]
[1739289346763,0.304314,97204.0,97203.0,0.00035694]
[1739289346973,0.304314,97204.0,97203.0,0.00735694]
[1739289346974,0.3964691,97204.0,97203.0,0.00735694]
[1739289347176,0.3974691,97204.0,97203.0,0.02235694]
[1739289347603,0.3964691,97204.0,97203.0,0.00735694]
[1739289347805,0.3974691,97204.0,97203.0,0.01935694]
[1739289348011,0.305314,97204.0,97203.0,0.01935694]
[1739289348434,0.31551308,97204.0,97203.0,0.00035694]
[1739289348648,0.31651308,97204.0,97203.0,0.00035694]
[1739289349085,0.305314,97204.0,97203.0,0.00035694]
[1739289350774,0.304314,97204.0,97203.0,0.00035694]
[1739289350982,0.304314,97204.0,97203.0,0.00335694]
[1739289351187,0.304314,97204.0,97203.0,0.00535694]
[1739289351611,0.304314,97204.0,97203.0,0.00335694]
[1739289351928,0.305314,97204.0,97203.0,0.01235694]
[1739289352436,0.305314,97204.0,97203.0,0.09515694]
[1739289354951,0.001,97204.0,97203.0,0.09515694]
[1739289355389,0.155314,97204.0,97203.0,0.09515694]
[1739289355585,0.001,97204.0,97203.0,0.24476059]
[1739289355963,0.001,97204.0,97203.0,0.42207659]
[1739289356912,0.001,97204.0,97203.0,0.42507659]
[1739289357114,0.154286,97222.0,97209.0,0.0828]
[1739289357720,0.15,97228.0,97209.0,0.0828]
[1739289357928,0.154288,97221.0,97209.0,0.0828]
[1739289358199,0.0001066,97213.0,97209.0,0.0828]
[1739289358334,0.0001066,97213.0,97209.0,0.0868]
[1739289358761,0.0001066,97213.0,97209.0,0.0888]
[1739289358928,0.0001066,97213.0,97209.0,0.0848]
[1739289360499,0.1544066,97213.0,97209.0,0.0898]
[1739289360728,0.0001066,97213.0,97209.0,0.0898]
[1739289360930,0.0001066,97213.0,97209.0,0.0848]
[1739289361139,0.24689176,97212.0,97209.0,0.0828]
[1739289361347,0.154305,97210.0,97209.0,0.011]
[1739289361544,0.154305,97210.0,97209.0,0.015]
[1739289361673,0.154307,97209.0,97203.0,0.07975694]
[1739289362251,0.154303,97211.0,97203.0,0.07975694]
[1739289362455,0.0001066,97213.0,97203.0,0.07975694]
[1739289362653,0.154303,97212.0,97209.0,0.008]
[1739289362865,0.154303,97211.0,97209.0,0.011]
[1739289363044,0.154303,97211.0,97209.0,0.008]
[1739289363599,0.0001066,97213.0,97209.0,0.008]
[1739289364026,0.0001066,97213.0,97203.0,0.07975694]
[1739289364551,0.0001066,97213.0,97203.0,0.08475694]
[1739289364707,0.0001066,97213.0,97203.0,0.23907294]
[1739289364912,0.0001066,97213.0,97209.0,0.002]
[1739289365488,0.0001066,97213.0,97203.0,0.08375694]
[1739289365690,0.01544036,97212.0,97203.0,0.08675694]
[1739289365866,0.0001066,97213.0,97212.0,0.233701]
[1739289366103,0.0001066,97213.0,97212.0,0.38510465]
[1739289366748,0.0001066,97213.0,97212.0,0.40810465]
[1739289368418,0.0001066,97213.0,97212.0,0.42310465]
[1739289369247,0.0001066,97213.0,97212.0,0.43010465]
[1739289375593,0.0001066,97213.0,97212.0,0.25280365]
[1739289376118,0.0001066,97213.0,97212.0,0.1014]
[1739289383109,0.0001066,97213.0,97212.0,0.022]
[1739289384666,0.02180749,97213.0,97212.0,0.022]
[1739289386068,0.17610749,97213.0,97212.0,0.022]
[1739289386827,0.17610749,97213.0,97212.0,0.015]
[1739289387268,0.17610749,97213.0,97212.0,0.017]
[1739289388209,0.1544066,97213.0,97212.0,0.017]
[1739289388846,0.1544066,97213.0,97212.0,0.002]
[1739289389841,0.1544066,97213.0,97212.0,0.008]
[1739289392129,0.3044066,97213.0,97212.0,0.008]
[1739289392374,0.40691025,97213.0,97212.0,0.008]
[1739289392607,0.5094139,97213.0,97212.0,0.008]
[1739289393026,0.5094139,97213.0,97212.0,0.006]
[1739289393237,0.304313,97205.0,97204.0,0.00089614]
[1739289393448,0.40681665,97205.0,97204.0,0.00089614]
[1739289394590,0.40881665,97205.0,97204.0,0.00089614]
[1739289394819,0.5113203,97205.0,97204.0,0.00089614]
[1739289396280,0.41281665,97205.0,97204.0,0.00089614]
[1739289396690,0.32173582,97205.0,97204.0,0.00089614]
[1739289397263,0.31973582,97205.0,97204.0,0.00089614]
[1739289397650,0.32073582,97205.0,97204.0,0.00089614]
[1739289397851,0.31973582,97205.0,97204.0,0.00089614]
[1739289398296,0.39192075,97205.0,97204.0,0.00089614]
[1739289398538,0.38792075,97205.0,97204.0,0.00089614]
[1739289398700,0.33980998,97205.0,97204.0,0.00089614]
[1739289399288,0.33680998,97205.0,97204.0,0.00089614]
[1739289399696,0.33680998,97205.0,97204.0,0.00289614]
[1739289399941,0.33680998,97205.0,97204.0,0.00389614]
[1739289400269,0.33680998,97205.0,97204.0,0.00089614]
[1739289402041,0.33680998,97205.0,97204.0,0.00189614]
[1739289402241,0.37462796,97205.0,97204.0,0.00189614]
[1739289402579,0.37462796,97205.0,97204.0,0.00089614]
[1739289402807,0.37462796,97205.0,97204.0,0.00289614]
[1739289403214,0.37462796,97205.0,97204.0,0.00089614]
[1739289403423,0.03249698,97205.0,97204.0,0.00089614]
[1739289403626,0.02107416,97205.0,97204.0,0.00089614]
[1739289404108,0.17538716,97205.0,97204.0,0.00089614]
[1739289404781,0.17538716,97205.0,97204.0,0.00289614]
[1739289405182,0.17538716,97205.0,97204.0,0.00089614]
[1739289405387,0.17538716,97205.0,97204.0,0.00289614]
[1739289405775,0.17538716,97205.0,97204.0,0.00089614]
[1739289406185,0.17538716,97205.0,97204.0,0.00289614]
[1739289406385,0.25578248,97205.0,97204.0,0.00289614]
[1739289407738,0.25578248,97205.0,97204.0,0.00089614]
[1739289408047,0.25578248,97205.0,97204.0,0.00289614]
[1739289408556,0.40578248,97205.0,97204.0,0.00089614]
[1739289408978,0.40578248,97205.0,97204.0,0.00389614]
[1739289409635,0.32538716,97205.0,97204.0,0.00389614]
[1739289418222,0.32549376,97205.0,97204.0,0.00389614]
[1739289419790,0.42799741,97205.0,97204.0,0.00389614]
[1739289420839,0.154316,97203.0,97202.0,1.96047693]
[1739289421053,0.476903,97203.0,97202.0,1.96047693]
[1739289422053,0.40681965,97203.0,97202.0,1.96047693]
[1739289422462,0.40881965,97203.0,97202.0,1.96047693]
[1739289422667,0.306316,97203.0,97202.0,1.96047693]
[1739289422841,0.306316,97203.0,97202.0,2.04367693]
[1739289423461,0.309316,97203.0,97202.0,2.04367693]
[1739289423938,0.35735382,97203.0,97202.0,2.04367693]
[1739289424135,0.35735382,97203.0,97202.0,2.04667693]
[1739289424864,0.35735382,97203.0,97202.0,2.04367693]
[1739289425065,0.35835382,97203.0,97202.0,2.04767693]
[1739289425239,0.35635382,97203.0,97202.0,2.04767693]
[1739289425445,0.35635382,97203.0,97202.0,2.04867693]
[1739289425824,0.305316,97203.0,97202.0,2.00367692]
[1739289426019,0.305316,97203.0,97202.0,2.00467692]
[1739289430833,0.305316,97203.0,97202.0,1.96090077]
[1739289431377,0.001,97203.0,97202.0,1.96090077]
[1739289432436,0.001,97203.0,97202.0,1.95990077]
[1739289432636,0.001,97203.0,97202.0,1.96090077]
[1739289432963,0.00015091,97205.0,97202.0,1.87270077]
[1739289433161,0.00015091,97205.0,97203.0,0.0832]
[1739289434947,0.00015091,97205.0,97203.0,0.0872]
[1739289435344,0.01403257,97205.0,97203.0,0.0872]
[1739289435552,0.01403257,97205.0,97203.0,0.0882]
[1739289435727,0.16834557,97205.0,97203.0,0.0882]
[1739289435983,0.01403257,97205.0,97203.0,0.0882]
[1739289438047,0.16834557,97205.0,97203.0,0.0882]
[1739289438247,0.03852656,97204.0,97203.0,0.0882]
[1739289439231,0.03852656,97204.0,97203.0,0.0872]
[1739289439703,0.03852656,97204.0,97203.0,0.0892]
[1739289440099,0.03852656,97204.0,97203.0,0.0852]
[1739289440301,0.19384056,97204.0,97203.0,0.0902]
[1739289440503,0.03952656,97204.0,97203.0,0.0902]
[1739289441475,0.19384056,97204.0,97203.0,0.0902]
[1739289441882,0.19384056,97204.0,97203.0,0.007]
[1739289442062,0.34384056,97204.0,97203.0,0.007]
[1739289453846,0.44634421,97204.0,97203.0,0.007]
[1739289456813,0.44534421,97204.0,97203.0,0.002]
[1739289456986,0.44534421,97204.0,97202.0,1.87270077]
[1739289456987,0.304316,97203.0,97202.0,1.87270077]
[1739289457139,0.5093233,97203.0,97202.0,1.87270077]
[1739289458428,0.5589233,97203.0,97202.0,1.87270077]
[1739289459166,5.6089233,97203.0,97202.0,1.87270077]
[1739289459375,4.9979233,97203.0,97202.0,1.87270077]
[1739289459785,4.8216233,97203.0,97202.0,1.87370077]
[1739289460097,0.74341965,97203.0,97202.0,1.87370077]
[1739289460711,0.74341965,97203.0,97202.0,1.82970076]
[1739289465627,0.85191965,97203.0,97202.0,1.82970076]
[1739289465856,0.75125965,97203.0,97202.0,1.78570075]
[1739289468510,0.74341965,97203.0,97202.0,1.78570075]
[1739289468718,0.75125965,97203.0,97202.0,1.78570075]
[1739289468882,0.8537633,97203.0,97202.0,1.78570075]
[1739289470803,0.8537633,97203.0,97202.0,1.74170074]
[1739289475701,0.8537633,97203.0,97202.0,1.69770073]
[1739289476448,6.0322633,97203.0,97202.0,1.44378355]
[1739289477462,6.0322633,97203.0,97202.0,1.42320755]
[1739289477619,6.0322633,97203.0,97202.0,1.34090355]
[1739289478263,6.0292633,97203.0,97202.0,1.34090355]
[1739289478462,6.0292633,97203.0,97202.0,1.25859955]
[1739289478463,6.0302633,97203.0,97202.0,1.25859955]
[1739289478840,6.0442633,97203.0,97202.0,1.22967985]
[1739289479055,6.0443699,97203.0,97202.0,1.22967985]
[1739289479453,6.0303699,97203.0,97202.0,1.18752785]
[1739289479661,6.0443699,97203.0,97202.0,1.12679985]
[1739289480264,6.0443699,97203.0,97202.0,1.06622385]
[1739289480472,6.0443699,97203.0,97202.0,1.00449585]
[1739289480652,6.0443699,97203.0,97202.0,0.93991984]
[1739289481356,6.0443699,97203.0,97202.0,0.91934384]
[1739289481635,6.0443699,97203.0,97202.0,0.83703984]
[1739289483179,2.7181699,97203.0,97202.0,0.83703984]
[1739289483399,2.0503699,97203.0,97202.0,0.83703984]
[1739289485662,2.0503699,97203.0,97202.0,0.79303983]
[1739289487064,0.91216625,97203.0,97202.0,0.79303983]
[1739289487233,0.76336625,97203.0,97202.0,0.87503983]
[1739289490790,0.76336625,97203.0,97202.0,0.83103982]
[1739289495655,0.76336625,97203.0,97202.0,0.78703981]
[1739289499668,0.76336625,97203.0,97202.0,0.70503981]
[1739289499874,0.8658699,97203.0,97202.0,0.70503981]
[1739289500692,0.8658699,97203.0,97202.0,0.6610398]
[1739289501285,5.9158699,97203.0,97202.0,0.6610398]
[1739289501706,0.8658699,97203.0,97202.0,0.6610398]
[1739289502155,5.9258699,97203.0,97202.0,0.39861851]
[1739289502461,6.0673699,97203.0,97202.0,0.25634581]
[1739289502687,6.0673699,97203.0,97202.0,0.22756522]
[1739289502887,6.06714855,97203.0,97202.0,0.22756522]
[1739289503340,6.06714855,97203.0,97202.0,0.20698922]
[1739289503538,6.06714855,97203.0,97202.0,0.16583722]
[1739289503834,6.06714855,97203.0,97202.0,0.14526122]
[1739289504018,6.06714855,97203.0,97202.0,0.03662522]
[1739289504463,6.06714855,97203.0,97202.0,2.2e-07]
[1739289504668,1.01714855,97203.0,97202.0,2.2e-07]
[1739289505451,0.01,97185.0,97180.0,0.0811]
[1739289505624,0.304351,97181.0,97180.0,0.03709999]
[1739289505836,0.304351,97181.0,97175.0,0.00022386]
[1739289505837,0.304359,97176.0,97175.0,0.00022386]
[1739289506062,0.40686265,97176.0,97175.0,0.00022386]
[1739289506261,0.50929032,97176.0,97175.0,0.00022386]
[1739289507557,0.51029032,97176.0,97175.0,0.00022386]
[1739289507758,0.36129032,97176.0,97175.0,0.00022386]
[1739289508373,0.38167167,97176.0,97175.0,0.00022386]
[1739289509223,0.38067167,97176.0,97175.0,0.00022386]
[1739289509622,0.38167167,97176.0,97175.0,0.00022386]
[1739289510186,0.85927167,97176.0,97175.0,0.00022386]
[1739289512105,0.85827167,97176.0,97175.0,0.00022386]
[1739289512312,0.87227167,97176.0,97175.0,0.00022386]
[1739289512514,0.91271795,97176.0,97175.0,0.00022386]
[1739289513024,0.92171795,97176.0,97175.0,0.00022386]
[1739289513405,0.93171795,97176.0,97175.0,0.00022386]
[1739289513610,0.304368,97170.0,97161.0,0.0831]
[1739289513810,0.90311956,97170.0,97161.0,0.0831]
[1739289514020,0.92851158,97170.0,97161.0,0.0831]
[1739289514219,5.97851158,97170.0,97161.0,0.0831]
[1739289514555,5.9280653,97170.0,97161.0,0.0831]
[1739289514901,5.9320653,97170.0,97169.0,0.00035694]
[1739289515747,5.9380653,97170.0,97169.0,0.00035694]
[1739289516308,0.304381,97162.0,97161.0,0.03945693]
[1739289516519,0.49907305,97162.0,97161.0,0.03945693]
[1739289517396,0.50007305,97162.0,97161.0,0.03945693]
[1739289521310,0.40788465,97162.0,97161.0,0.03945693]
[1739289522261,0.304381,97162.0,97161.0,0.03945693]
[1739289522483,0.305381,97162.0,97161.0,0.03945693]
[1739289522685,0.305381,97162.0,97161.0,0.08545693]
[1739289523519,0.306381,97162.0,97161.0,0.08545693]
[1739289523696,0.3987694,97162.0,97161.0,0.08545693]
[1739289523897,0.3977694,97162.0,97161.0,0.08545693]
[1739289524122,0.3987694,97162.0,97161.0,0.08545693]
[1739289524320,0.3967694,97162.0,97161.0,0.08545693]
[1739289524525,0.3967694,97162.0,97161.0,0.08568079]
[1739289525715,0.3977694,97162.0,97161.0,0.08568079]
[1739289526194,0.3967694,97162.0,97161.0,0.08568079]
[1739289526393,0.3977694,97162.0,97161.0,0.08568079]
[1739289528529,0.50027305,97162.0,97161.0,0.08568079]
[1739289528731,0.50027305,97162.0,97161.0,0.00022386]
[1739289529392,0.49927305,97162.0,97161.0,0.00022386]
[1739289530488,0.50627305,97162.0,97161.0,0.00022386]
[1739289530833,0.51027305,97162.0,97161.0,0.00022386]
[1739289531729,5.56027305,97162.0,97161.0,0.00022386]
[1739289531901,5.56027305,97162.0,97145.0,0.0815]
[1739289531902,0.304403,97148.0,97145.0,0.0815]
[1739289532112,0.47851975,97148.0,97145.0,0.0815]
[1739289533143,0.47951975,97148.0,97145.0,0.0815]
[1739289533869,0.40790665,97148.0,97145.0,0.0815]
[1739289534073,0.305403,97148.0,97145.0,0.0815]
[1739289535735,0.15,97147.0,97145.0,0.03772385]
[1739289535942,0.304406,97146.0,97145.0,0.03772385]
[1739289538947,0.305406,97146.0,97145.0,0.03772385]
[1739289539155,0.40081341,97146.0,97145.0,0.03772385]
[1739289539344,0.50331706,97146.0,97145.0,0.03772385]
[1739289539575,0.154413,97142.0,97141.0,0.07902365]
[1739289539889,0.25691665,97142.0,97141.0,0.07902365]
[1739289540266,0.40691665,97142.0,97141.0,0.07902365]
[1739289540471,0.5094203,97142.0,97141.0,0.00022365]
[1739289542097,0.5124203,97142.0,97141.0,0.00022365]
[1739289542304,0.5104203,97142.0,97141.0,0.00022365]
[1739289542504,0.5134203,97142.0,97141.0,0.00022365]
[1739289542978,0.304419,97138.0,97137.0,0.00022365]
[1739289543236,0.304422,97136.0,97135.0,0.00022386]
[1739289543443,0.76789315,97136.0,97135.0,0.00022386]
[1739289544578,0.76989315,97136.0,97135.0,0.00022386]
[1739289545349,0.77889699,97136.0,97135.0,0.00022386]
[1739289545544,0.88140064,97136.0,97135.0,0.00022386]
[1739289545750,0.304443,97123.0,97122.0,0.03997136]
[1739289547644,0.305443,97123.0,97122.0,0.03997136]
[1739289548027,0.31643085,97123.0,97122.0,0.03997136]
[1739289548973,0.31543085,97123.0,97122.0,0.03997136]
[1739289549179,0.40874883,97123.0,97122.0,0.03997136]
[1739289549399,0.40974883,97123.0,97122.0,0.03997136]
[1739289549805,0.40874883,97123.0,97122.0,0.03997136]
[1739289550250,0.40974883,97123.0,97122.0,0.03997136]
[1739289550655,0.40874883,97123.0,97122.0,0.03997136]
[1739289551154,0.40974883,97123.0,97122.0,0.03997136]
[1739289551766,0.15,97122.0,97117.0,0.0464]
[1739289551969,0.304451,97118.0,97117.0,0.0464]
[1739289552197,0.304456,97115.0,97107.0,0.1297]
[1739289552623,0.43261825,97115.0,97107.0,0.1297]
[1739289552853,0.45794494,97115.0,97107.0,0.1297]
[1739289553084,0.56044859,97115.0,97107.0,0.1297]
[1739289553477,0.5351219,97115.0,97107.0,0.1297]
[1739289553999,0.5094633,97115.0,97107.0,0.1297]
[1739289555481,0.5104633,97115.0,97107.0,0.1297]
[1739289555674,0.40795965,97115.0,97107.0,0.1297]
[1739289555874,0.305456,97115.0,97107.0,0.1297]
[1739289557836,0.305456,97115.0,97114.0,0.12652386]
[1739289559903,0.305456,97115.0,97114.0,0.00022386]
[1739289560260,0.40795965,97115.0,97114.0,0.00022386]
[1739289560492,0.5361219,97115.0,97114.0,0.00022386]
[1739289560688,0.56144859,97115.0,97114.0,0.00022386]
[1739289561729,0.56044859,97115.0,97114.0,0.00022386]
[1739289561958,0.5094633,97115.0,97114.0,0.00022386]
[1739289562138,0.5104633,97115.0,97114.0,0.00022386]
[1739289562565,0.5094633,97115.0,97114.0,0.00022386]
[1739289562971,0.5094633,97115.0,97106.0,0.00011538]
[1739289562972,0.304468,97107.0,97106.0,0.00011538]
[1739289563138,0.47860915,97107.0,97106.0,0.00011538]
[1739289564377,0.47860915,97107.0,97106.0,0.00055896]
[1739289564596,0.47960915,97107.0,97106.0,0.00055896]
[1739289565924,0.48060915,97107.0,97106.0,0.00055896]
[1739289566151,0.50075844,97107.0,97106.0,0.00055896]
[1739289567339,0.49975844,97107.0,97106.0,0.00055896]
[1739289567544,0.50075844,97107.0,97106.0,0.00055896]
[1739289567921,0.49975844,97107.0,97106.0,0.00055896]
[1739289568121,0.50075844,97107.0,97106.0,0.00055896]
[1739289568323,0.49975844,97107.0,97106.0,0.00055896]
[1739289568726,0.48060915,97107.0,97106.0,0.00055896]
[1739289568956,0.38808793,97107.0,97106.0,0.00055896]
[1739289569156,0.38708793,97107.0,97106.0,0.00055896]
[1739289569332,0.38808793,97107.0,97106.0,0.00055896]
[1739289569531,0.38908793,97107.0,97106.0,0.00055896]
[1739289569961,0.38808793,97107.0,97106.0,0.00055896]
[1739289570334,0.38908793,97107.0,97106.0,0.00055896]
[1739289570540,0.38808793,97107.0,97106.0,0.00055896]
[1739289570737,0.38908793,97107.0,97106.0,0.00055896]
[1739289571139,0.38808793,97107.0,97106.0,0.00055896]
[1739289571338,0.38908793,97107.0,97106.0,0.00055896]
[1739289571761,0.38808793,97107.0,97106.0,0.00055896]
[1739289572124,0.38908793,97107.0,97106.0,0.00055896]
[1739289572609,0.16198243,97107.0,97106.0,0.13115896]
[1739289572964,0.31745043,97107.0,97106.0,0.13115896]
[1739289573510,0.15,97107.0,97106.0,0.13115896]
[1739289573710,0.00784,97126.0,97109.0,0.0491]
[1739289573836,0.205928,97121.0,97111.0,0.0491]
[1739289574043,0.02138747,97120.0,97112.0,0.0815]
[1739289574325,0.154449,97119.0,97112.0,0.0815]
[1739289575292,0.15,97118.0,97112.0,0.0805]
[1739289575853,0.001,97121.0,97116.0,0.154453]
[1739289576137,0.001,97121.0,97116.0,0.154454]
[1739289576323,0.001,97121.0,97113.0,0.205944]
[1739289576532,0.001,97121.0,97118.0,0.0491]
[1739289576764,0.0001067,97122.0,97118.0,0.0491]
[1739289577125,0.001,97119.0,97118.0,0.0491]
[1739289577308,0.0001067,97122.0,97109.0,0.0491]
[1739289577511,0.0001067,97122.0,97121.0,0.203546]
[1739289577902,0.0001067,97122.0,97121.0,0.30604965]
[1739289578102,0.0001067,97122.0,97121.0,0.32904965]
[1739289578421,0.0001067,97122.0,97121.0,0.41054965]
[1739289578625,0.0001067,97122.0,97121.0,0.40954965]
[1739289578842,0.0011067,97122.0,97121.0,0.40954965]
[1739289579461,0.0021067,97122.0,97121.0,0.39054965]
[1739289586073,0.0021067,97122.0,97121.0,0.41354965]
[1739289587056,0.0011067,97122.0,97121.0,0.41354965]
[1739289587394,0.0021067,97122.0,97121.0,0.41354965]
[1739289587825,0.0011067,97122.0,97121.0,0.40954965]
[1739289588228,0.0021067,97122.0,97121.0,0.42454965]
[1739289594552,0.0001067,97142.0,97141.0,0.154414]
[1739289594737,0.0001067,97142.0,97141.0,0.37941765]
[1739289595884,0.0011067,97142.0,97141.0,0.39441765]
[1739289596284,0.0001067,97142.0,97141.0,0.37941765]
[1739289597147,0.0001067,97142.0,97141.0,0.38641765]
[1739289597355,0.0001067,97142.0,97141.0,0.37941765]
[1739289597788,0.0001067,97142.0,97141.0,0.40141765]
[1739289597989,0.0001067,97142.0,97141.0,0.39441765]
[1739289598269,0.0001067,97142.0,97141.0,0.42441765]
[1739289599298,0.0001067,97142.0,97141.0,0.40941765]
[1739289599939,0.0001067,97142.0,97141.0,0.42965406]
[1739289600991,0.0001067,97142.0,97141.0,0.42265406]
[1739289601191,0.0011067,97142.0,97141.0,0.44465406]
[1739289601337,0.0011067,97142.0,97141.0,0.59465406]
[1739289601557,0.0001067,97142.0,97141.0,0.57265406]
[1739289601960,0.0011067,97142.0,97141.0,0.59465406]
[1739289602336,0.0011067,97142.0,97141.0,0.57965406]
[1739289602540,0.0001067,97162.0,97161.0,0.154382]
[1739289602896,0.0001067,97162.0,97161.0,0.285182]
[1739289604185,0.0001067,97162.0,97161.0,0.292182]
[1739289604404,0.0001067,97162.0,97161.0,0.285182]
[1739289604833,0.0001067,97162.0,97161.0,0.290182]
[1739289605029,0.0001067,97162.0,97161.0,0.34942893]
[1739289605233,0.0001067,97162.0,97161.0,0.36142893]
[1739289605612,0.154306,97209.0,97172.0,0.154364]
[1739289605794,0.00013294,97200.0,97173.0,0.10250365]
[1739289605997,0.15434,97188.0,97169.0,0.154369]
[1739289606197,0.10250365,97199.0,97169.0,0.10250365]
[1739289606403,0.10250365,97199.0,97171.0,0.154366]
[1739289606604,0.205767,97197.0,97170.0,0.154368]
[1739289606891,0.205767,97197.0,97169.0,0.10250365]
[1739289607048,0.02452308,97198.0,97161.0,0.10754328]
[1739289607249,0.02452308,97198.0,97162.0,0.10250365]
[1739289607250,0.205784,97189.0,97162.0,0.10250365]
[1739289607450,0.154345,97185.0,97166.0,0.154373]
[1739289607627,0.0154345,97184.0,97167.0,0.10250365]
[1739289608035,0.0154345,97184.0,97169.0,0.15437]
[1739289608439,0.154348,97183.0,97172.0,0.001]
[1739289608653,0.0154345,97184.0,97172.0,0.001]
[1739289608858,0.0154345,97184.0,97161.0,0.09254328]
[1739289608859,0.154355,97179.0,97161.0,0.24692528]
[1739289609057,0.19191515,97178.0,97161.0,0.204082]
[1739289609258,0.03755915,97178.0,97169.0,0.004]
[1739289609459,0.205801,97182.0,97169.0,0.004]
[1739289609659,0.154354,97180.0,97161.0,0.204081]
[1739289609871,0.154358,97177.0,97161.0,0.204081]
[1739289610337,0.15,97182.0,97161.0,0.0497]
[1739289610686,0.154364,97173.0,97161.0,0.0497]
[1739289611155,0.205814,97175.0,97161.0,0.0537]
[1739289611334,0.154362,97174.0,97161.0,0.0497]
[1739289611543,0.205801,97181.0,97161.0,0.0497]
[1739289611785,0.154365,97173.0,97161.0,0.0497]
[1739289612033,0.154365,97173.0,97161.0,0.0587]
[1739289612277,0.19561205,97180.0,97161.0,0.01]
[1739289612514,0.15,97178.0,97161.0,0.001]
[1739289612751,0.154381,97162.0,97161.0,0.001]
[1739289613185,0.235581,97162.0,97161.0,0.001]
[1739289613398,0.235581,97162.0,97143.0,0.0497]
[1739289613621,0.154408,97146.0,97143.0,0.0497]
[1739289613846,0.0812,97162.0,97143.0,0.0497]
[1739289614052,0.02312,97161.0,97143.0,0.0497]
[1739289614475,0.154399,97151.0,97143.0,0.0497]
[1739289614761,0.154397,97152.0,97143.0,0.0497]
[1739289614908,0.02312,97161.0,97143.0,0.0497]
[1739289615535,0.228965,97161.0,97143.0,0.0537]
[1739289615759,0.205848,97159.0,97143.0,0.0597]
[1739289615914,0.03410685,97160.0,97143.0,0.0597]
[1739289616115,0.03410685,97160.0,97143.0,0.0537]
[1739289616367,0.154397,97152.0,97143.0,0.0537]
[1739289616597,0.03410685,97160.0,97143.0,0.0537]
[1739289616789,0.154411,97143.0,97142.0,0.00022407]
[1739289618332,0.154411,97143.0,97142.0,0.00622407]
[1739289618696,0.154411,97143.0,97142.0,0.02022407]
[1739289620015,0.16481952,97143.0,97142.0,0.02022407]
[1739289622476,0.16481952,97143.0,97142.0,0.00622407]
[1739289622606,0.16481952,97143.0,97142.0,0.00822407]
[1739289622607,0.23008687,97143.0,97142.0,0.00822407]
[1739289622804,0.23008687,97143.0,97142.0,0.01122407]
[1739289623055,0.38008687,97143.0,97142.0,0.01122407]
[1739289624213,0.38008687,97143.0,97142.0,0.00822407]
[1739289624214,0.48259052,97143.0,97142.0,0.00822407]
[1739289624427,0.1995481,97143.0,97142.0,0.01122407]
[1739289624626,0.1995481,97143.0,97142.0,0.00322407]
[1739289624845,0.37485043,97143.0,97142.0,0.00322407]
[1739289625026,0.37485043,97143.0,97142.0,0.01122407]
[1739289625400,0.38563205,97143.0,97142.0,0.01122407]
[1739289625792,0.38563205,97143.0,97142.0,0.00322407]
[1739289626290,0.53563205,97143.0,97142.0,0.00322407]
[1739289626486,0.53563205,97143.0,97142.0,0.00022407]
[1739289627495,0.53563205,97143.0,97142.0,0.00222407]
[1739289627696,0.53563205,97143.0,97142.0,0.00322407]
[1739289627903,0.56683205,97143.0,97142.0,0.00322407]
[1739289628144,0.56683205,97143.0,97142.0,0.00022407]
[1739289628300,0.57183205,97143.0,97142.0,0.00122407]
[1739289628781,0.56683205,97143.0,97142.0,0.00022407]
[1739289629184,0.57283205,97143.0,97142.0,0.00122407]
[1739289629412,0.4757876,97143.0,97142.0,0.00122407]
[1739289630461,0.4697876,97143.0,97142.0,0.00022407]
[1739289630665,0.4385876,97143.0,97142.0,0.00122407]
[1739289631005,0.54609125,97143.0,97142.0,0.00122407]
[1739289631605,0.54109125,97143.0,97142.0,0.00022407]
[1739289631972,0.54609125,97143.0,97142.0,0.00122407]
[1739289632557,0.54109125,97143.0,97142.0,0.00022407]
[1739289633579,0.304444,97122.0,97105.0,0.08256914]
[1739289633795,0.40694765,97122.0,97121.0,0.00066765]
[1739289634434,0.48214765,97122.0,97121.0,0.00066765]
[1739289635051,0.48214765,97122.0,97121.0,0.00366765]
[1739289635271,0.5846513,97122.0,97121.0,0.00466765]
[1739289635470,0.5846513,97122.0,97121.0,0.00166765]
[1739289635689,0.5846513,97122.0,97121.0,0.00066765]
[1739289635892,0.5896513,97122.0,97121.0,0.00166765]
[1739289636302,0.5896513,97122.0,97105.0,0.04035216]
[1739289636507,0.30447,97106.0,97105.0,0.04035216]
[1739289636708,0.304471,97105.0,97104.0,0.00022386]
[1739289638932,0.304471,97105.0,97104.0,0.00122386]
[1739289639139,0.31507771,97105.0,97104.0,0.00122386]
[1739289639538,0.33576067,97105.0,97104.0,0.00122386]
[1739289639937,0.43826432,97105.0,97104.0,0.00122386]
[1739289640591,0.33576067,97105.0,97104.0,0.00122386]
[1739289641482,0.33676067,97105.0,97104.0,0.00522386]
[1739289641927,0.43926432,97105.0,97104.0,0.00522386]
[1739289648469,0.31607771,97105.0,97104.0,0.00522386]
[1739289651600,0.41858136,97105.0,97104.0,0.00522386]
[1739289651806,0.52108501,97105.0,97104.0,0.00522386]
[1739289655540,0.41858136,97105.0,97104.0,0.00522386]
[1739289658052,0.41847842,97105.0,97104.0,0.00522386]
[1739289659688,0.41858512,97105.0,97104.0,0.00522386]
[1739289664397,0.41808512,97105.0,97104.0,0.00522386]
[1739289667573,0.74718512,97105.0,97104.0,0.00522386]
[1739289667775,0.84968877,97105.0,97104.0,0.00522386]
[1739289669071,5.89968877,97105.0,97104.0,0.00522386]
[1739289669264,0.304492,97092.0,97080.0,0.0455]
[1739289669463,1.09721545,97092.0,97080.0,0.0455]
[1739289669668,1.1997191,97092.0,97080.0,0.0455]
[1739289670498,1.1997191,97092.0,97091.0,0.00029125]
[1739289670702,0.15,97091.0,97080.0,0.00179124]
[1739289670911,0.154514,97078.0,97077.0,0.00022386]
[1739289671138,0.1849654,97078.0,97077.0,0.00035707]
[1739289672502,0.154514,97078.0,97077.0,0.00035707]
[1739289672696,0.154504,97085.0,97077.0,0.00035707]
[1739289672923,0.154512,97080.0,97078.0,0.0799]
[1739289673346,0.154513,97079.0,97078.0,0.0799]
[1739289673581,0.154513,97079.0,97078.0,0.0779]
[1739289673783,0.16515633,97079.0,97078.0,0.1234]
[1739289674122,0.16515633,97079.0,97078.0,0.1224]
[1739289674697,0.16615633,97079.0,97078.0,0.1264]
[1739289676946,0.155513,97079.0,97078.0,0.1264]
[1739289677245,0.155513,97079.0,97078.0,0.0495]
[1739289677606,0.157513,97079.0,97078.0,0.0495]
[1739289677903,0.17063361,97079.0,97078.0,0.004]
[1739289681629,0.01612061,97079.0,97078.0,0.004]
[1739289681763,0.17063361,97079.0,97078.0,0.004]
[1739289682400,0.27313726,97079.0,97078.0,0.004]